[Event "Titled Tuesday Blitz June 13 Late 2023"]
[White "Nihal Sarin"]
[Black "Goltsev, Dmitry"]
[WhiteFideId "25092340"]
[BlackFideId "24176710"]
[WhiteElo "2689"]
[BlackElo "2356"]
[Result "1-0"]
[Round "3"]
[TimeControl "180+2"]
[Date "2023.06.13"]
[WhiteClock "0:00:23"]
[BlackClock "0:00:18"]
[Board "2"]

1. e4 {[%clk 0:03:00]}  e6 {[%clk 0:02:59]} 2. d4 {[%clk 0:03:00]}  d5 {[%clk 0:03:00]} 3. Nd2 {[%clk 0:03:01]}  c5 {[%clk 0:03:00]} 4. Ngf3 {[%clk 0:02:59]}  Nf6 {[%clk 0:03:00]} 5. exd5 {[%clk 0:02:53]}  exd5 {[%clk 0:03:01]} 6. Bb5+ {[%clk 0:02:51]}  Bd7 {[%clk 0:02:59]} 7. Bxd7+ {[%clk 0:02:49]}  Nbxd7 {[%clk 0:03:00]} 8. O-O {[%clk 0:02:50]}  Be7 {[%clk 0:03:00]} 9. dxc5 {[%clk 0:02:50]}  Nxc5 {[%clk 0:03:00]} 10. Nb3 {[%clk 0:02:50]}  Nce4 {[%clk 0:02:59]} 11. Nfd4 {[%clk 0:02:49]}  O-O {[%clk 0:02:59]} 12. Qf3 {[%clk 0:02:48]}  Rc8 {[%clk 0:02:57]} 13. c3 {[%clk 0:02:48]}  g6 {[%clk 0:02:51]} 14. Bh6 {[%clk 0:02:44]}  Re8 {[%clk 0:02:51]} 15. Rad1 {[%clk 0:02:45]}  Bf8 {[%clk 0:02:45]} 16. Bxf8 {[%clk 0:02:42]}  Rxf8 {[%clk 0:02:46]} 17. Qf4 {[%clk 0:02:38]}  Qd6 {[%clk 0:02:43]} 18. Qh4 {[%clk 0:02:22]}  a6 {[%clk 0:02:30]} 19. f3 {[%clk 0:02:22]}  Nc5 {[%clk 0:02:30]} 20. Nxc5 {[%clk 0:02:22]}  Rxc5 {[%clk 0:02:30]} 21. Rfe1 {[%clk 0:02:21]}  Rcc8 {[%clk 0:02:30]} 22. Qg5 {[%clk 0:02:17]}  Rfe8 {[%clk 0:02:26]} 23. Qd2 {[%clk 0:02:10]}  Rxe1+ {[%clk 0:02:25]} 24. Rxe1 {[%clk 0:02:11]}  Re8 {[%clk 0:02:25]} 25. Rd1 {[%clk 0:02:00]}  Qe5 {[%clk 0:02:23]} 26. Qf2 {[%clk 0:01:52]}  Qe3 {[%clk 0:02:21]} 27. Qxe3 {[%clk 0:01:51]}  Rxe3 {[%clk 0:02:22]} 28. Kf2 {[%clk 0:01:52]}  Re7 {[%clk 0:02:19]} 29. Nc2 {[%clk 0:01:52]}  b5 {[%clk 0:02:11]} 30. Nb4 {[%clk 0:01:42]}  Re6 {[%clk 0:02:10]} 31. Nxd5 {[%clk 0:01:39]}  Nxd5 {[%clk 0:02:11]} 32. Rxd5 {[%clk 0:01:40]}  Kg7 {[%clk 0:02:12]} 33. Rd4 {[%clk 0:01:31]}  h5 {[%clk 0:02:10]} 34. h4 {[%clk 0:01:30]}  f6 {[%clk 0:02:04]} 35. a4 {[%clk 0:01:29]}  Kh6 {[%clk 0:01:55]} 36. axb5 {[%clk 0:01:20]}  axb5 {[%clk 0:01:55]} 37. Rd5 {[%clk 0:01:20]}  Rb6 {[%clk 0:01:53]} 38. Ke3 {[%clk 0:01:08]}  g5 {[%clk 0:01:52]} 39. g3 {[%clk 0:00:49]}  Kg6 {[%clk 0:01:42]} 40. Kd3 {[%clk 0:00:43]}  Rb8 {[%clk 0:01:29]} 41. b4 {[%clk 0:00:40]}  Rb7 {[%clk 0:01:18]} 42. f4 {[%clk 0:00:36]}  g4 {[%clk 0:01:12]} 43. c4 {[%clk 0:00:35]}  bxc4+ {[%clk 0:01:11]} 44. Kxc4 {[%clk 0:00:36]}  Rc7+ {[%clk 0:01:09]} 45. Kb3 {[%clk 0:00:36]}  Re7 {[%clk 0:01:07]} 46. Rd3 {[%clk 0:00:32]}  Kf5 {[%clk 0:01:06]} 47. b5 {[%clk 0:00:32]}  Re1 {[%clk 0:01:01]} 48. Kb4 {[%clk 0:00:27]}  Ke4 {[%clk 0:00:52]} 49. Rb3 {[%clk 0:00:28]}  Kd4 {[%clk 0:00:43]} 50. b6 {[%clk 0:00:26]}  Re8 {[%clk 0:00:22]} 51. Kb5 {[%clk 0:00:25]}  Rd8 {[%clk 0:00:22]} 52. b7 {[%clk 0:00:23]}  Kd5 {[%clk 0:00:18]} 53. Rd3+ {[%clk 0:00:23]} 1-0


[Site "https://www.chess.com"]

[Event "Titled Tuesday Blitz June 13 Late 2023"]
[White "Gadimbayli, Abdulla"]
[Black "Vachier-Lagrave, Maxime"]
[WhiteFideId "13404938"]
[BlackFideId "623539"]
[WhiteElo "2386"]
[BlackElo "2739"]
[Result "1-0"]
[Round "3"]
[TimeControl "180+2"]
[Date "2023.06.13"]
[WhiteClock "0:00:50"]
[BlackClock "0:01:37"]
[Board "5"]

1. e4 {[%clk 0:03:00]}  c5 {[%clk 0:02:57]} 2. Nf3 {[%clk 0:03:00]}  Nc6 {[%clk 0:02:56]} 3. Bb5 {[%clk 0:03:00]}  g6 {[%clk 0:02:55]} 4. Bxc6 {[%clk 0:03:00]}  bxc6 {[%clk 0:02:55]} 5. d4 {[%clk 0:03:00]}  cxd4 {[%clk 0:02:53]} 6. Qxd4 {[%clk 0:03:01]}  f6 {[%clk 0:02:54]} 7. Qa4 {[%clk 0:03:01]}  Qb6 {[%clk 0:02:53]} 8. c4 {[%clk 0:02:56]}  Qa6 {[%clk 0:02:53]} 9. Qc2 {[%clk 0:02:55]}  d5 {[%clk 0:02:53]} 10. exd5 {[%clk 0:02:45]}  Bf5 {[%clk 0:02:52]} 11. Qe2 {[%clk 0:02:36]}  cxd5 {[%clk 0:02:51]} 12. Nd4 {[%clk 0:02:27]}  Rc8 {[%clk 0:02:41]} 13. Nxf5 {[%clk 0:02:24]}  gxf5 {[%clk 0:02:37]} 14. Qh5+ {[%clk 0:02:18]}  Kd8 {[%clk 0:02:36]} 15. O-O {[%clk 0:02:07]}  Qxc4 {[%clk 0:02:35]} 16. Na3 {[%clk 0:02:00]}  Qg4 {[%clk 0:02:34]} 17. Qf7 {[%clk 0:02:00]}  Bh6 {[%clk 0:02:24]} 18. Qxd5+ {[%clk 0:01:46]}  Ke8 {[%clk 0:02:24]} 19. Qe6 {[%clk 0:01:02]}  Rc5 {[%clk 0:02:12]} 20. Bxh6 {[%clk 0:00:53]}  Nxh6 {[%clk 0:02:08]} 21. Rfe1 {[%clk 0:00:53]}  Qg7 {[%clk 0:01:43]} 22. Rac1 {[%clk 0:00:53]}  Rxc1 {[%clk 0:01:43]} 23. Rxc1 {[%clk 0:00:54]}  Nf7 {[%clk 0:01:43]} 24. Qc6+ {[%clk 0:00:51]}  Kf8 {[%clk 0:01:41]} 25. Qc8+ {[%clk 0:00:51]}  Nd8 {[%clk 0:01:42]} 26. Qxd8+ {[%clk 0:00:51]}  Kf7 {[%clk 0:01:43]} 27. Qd5+ {[%clk 0:00:52]}  Kg6 {[%clk 0:01:44]} 28. Rc3 {[%clk 0:00:52]}  f4 {[%clk 0:01:39]} 29. Qe4+ {[%clk 0:00:51]}  Kg5 {[%clk 0:01:39]} 30. h4+ {[%clk 0:00:50]}  Kh5 {[%clk 0:01:37]} 31. Qf5+ {[%clk 0:00:50]} 1-0


[Site "https://www.chess.com"]

[Event "Titled Tuesday Blitz June 13 Late 2023"]
[White "Kollars, Dmitrij"]
[Black "Vakhlamov, Igor L."]
[WhiteFideId "12909572"]
[BlackFideId "24126748"]
[WhiteElo "2584"]
[BlackElo "2407"]
[Result "1-0"]
[Round "3"]
[TimeControl "180+2"]
[Date "2023.06.13"]
[WhiteClock "0:00:44"]
[BlackClock "0:00:00"]
[Board "6"]

1. e4 {[%clk 0:03:00]}  c5 {[%clk 0:02:59]} 2. c3 {[%clk 0:03:00]}  g6 {[%clk 0:02:56]} 3. d4 {[%clk 0:03:00]}  cxd4 {[%clk 0:02:57]} 4. cxd4 {[%clk 0:03:01]}  d5 {[%clk 0:02:56]} 5. e5 {[%clk 0:03:01]}  Bg7 {[%clk 0:02:56]} 6. Nc3 {[%clk 0:02:58]}  a6 {[%clk 0:02:56]} 7. h3 {[%clk 0:02:57]}  f6 {[%clk 0:02:53]} 8. Nf3 {[%clk 0:02:57]}  Nc6 {[%clk 0:02:53]} 9. exf6 {[%clk 0:02:55]}  Nxf6 {[%clk 0:02:54]} 10. Bd3 {[%clk 0:02:54]}  O-O {[%clk 0:02:54]} 11. O-O {[%clk 0:02:54]}  Bf5 {[%clk 0:02:50]} 12. Bxf5 {[%clk 0:02:50]}  gxf5 {[%clk 0:02:51]} 13. Bf4 {[%clk 0:02:50]}  Ne4 {[%clk 0:02:49]} 14. Qb3 {[%clk 0:02:45]}  e6 {[%clk 0:02:35]} 15. Rad1 {[%clk 0:02:37]}  b5 {[%clk 0:02:13]} 16. Ne2 {[%clk 0:02:32]}  Rc8 {[%clk 0:02:11]} 17. Qe3 {[%clk 0:02:24]}  Qf6 {[%clk 0:02:07]} 18. Ne5 {[%clk 0:02:21]}  Nxe5 {[%clk 0:02:00]} 19. Bxe5 {[%clk 0:02:22]}  Qh6 {[%clk 0:01:35]} 20. Bf4 {[%clk 0:02:16]}  Qg6 {[%clk 0:00:56]} 21. f3 {[%clk 0:02:16]}  Nf6 {[%clk 0:00:53]} 22. Qxe6+ {[%clk 0:01:59]}  Kh8 {[%clk 0:00:54]} 23. Be5 {[%clk 0:01:50]}  Nh5 {[%clk 0:00:48]} 24. Qxg6 {[%clk 0:01:45]}  hxg6 {[%clk 0:00:49]} 25. g4 {[%clk 0:01:27]}  Nf6 {[%clk 0:00:37]} 26. Nf4 {[%clk 0:01:26]}  Kh7 {[%clk 0:00:36]} 27. Ne6 {[%clk 0:01:24]}  g5 {[%clk 0:00:03]} 28. Nxf8+ {[%clk 0:01:10]}  Rxf8 {[%clk 0:00:04]} 29. Rc1 {[%clk 0:01:08]}  Rf7 {[%clk 0:00:03]} 30. Rc6 {[%clk 0:01:04]}  Ne8 {[%clk 0:00:01]} 31. Rxa6 {[%clk 0:00:58]}  Bxe5 {[%clk 0:00:02]} 32. dxe5 {[%clk 0:00:59]}  Ng7 {[%clk 0:00:02]} 33. Rd6 {[%clk 0:00:54]}  Re7 {[%clk 0:00:02]} 34. Rxd5 {[%clk 0:00:53]}  b4 {[%clk 0:00:03]} 35. Rfd1 {[%clk 0:00:48]}  fxg4 {[%clk 0:00:03]} 36. hxg4 {[%clk 0:00:49]}  Rf7 {[%clk 0:00:03]} 37. Kf2 {[%clk 0:00:48]}  Ne6 {[%clk 0:00:03]} 38. Rd7 {[%clk 0:00:48]}  Kg6 {[%clk 0:00:04]} 39. Rxf7 {[%clk 0:00:48]}  Kxf7 {[%clk 0:00:05]} 40. Rd7+ {[%clk 0:00:48]}  Ke8 {[%clk 0:00:05]} 41. Rb7 {[%clk 0:00:48]}  Nf4 {[%clk 0:00:05]} 42. Ke3 {[%clk 0:00:45]}  Kd8 {[%clk 0:00:03]} 43. Ke4 {[%clk 0:00:46]}  Ne6 {[%clk 0:00:03]} 44. Rxb4 {[%clk 0:00:44]}  Nc5+ {[%clk 0:00:04]} 45. Kf5 {[%clk 0:00:44]}  Nd3 {[%clk 0:00:00]} 46. Rd4+ {[%clk 0:00:44]} 1-0


[Site "https://www.chess.com"]

[Event "Titled Tuesday Blitz June 13 Late 2023"]
[White "Perez Ponsa, Federico"]
[Black "Firouzja, Alireza"]
[WhiteFideId "117927"]
[BlackFideId "12573981"]
[WhiteElo "2590"]
[BlackElo "2896"]
[Result "1/2-1/2"]
[Round "3"]
[TimeControl "180+2"]
[Date "2023.06.13"]
[WhiteClock "0:00:13"]
[BlackClock "0:00:08"]
[Board "7"]

1. e4 {[%clk 0:02:13]}  c6 {[%clk 0:02:58]} 2. Nf3 {[%clk 0:02:14]}  d5 {[%clk 0:02:57]} 3. Nc3 {[%clk 0:02:15]}  Bg4 {[%clk 0:02:50]} 4. h3 {[%clk 0:02:15]}  Bxf3 {[%clk 0:02:50]} 5. Qxf3 {[%clk 0:02:16]}  Nf6 {[%clk 0:02:49]} 6. Be2 {[%clk 0:02:17]}  g6 {[%clk 0:02:36]} 7. O-O {[%clk 0:02:15]}  Bg7 {[%clk 0:02:35]} 8. d4 {[%clk 0:02:15]}  Nxe4 {[%clk 0:02:26]} 9. Nxe4 {[%clk 0:02:11]}  dxe4 {[%clk 0:02:26]} 10. Qb3 {[%clk 0:02:12]}  Qb6 {[%clk 0:02:20]} 11. c3 {[%clk 0:02:11]}  Nd7 {[%clk 0:02:19]} 12. Re1 {[%clk 0:02:11]}  O-O {[%clk 0:02:16]} 13. Bf1 {[%clk 0:02:09]}  Qxb3 {[%clk 0:02:08]} 14. axb3 {[%clk 0:02:10]}  f5 {[%clk 0:02:08]} 15. f3 {[%clk 0:02:06]}  e5 {[%clk 0:01:59]} 16. dxe5 {[%clk 0:01:59]}  Nxe5 {[%clk 0:01:45]} 17. fxe4 {[%clk 0:01:55]}  f4 {[%clk 0:01:46]} 18. Rd1 {[%clk 0:01:51]}  g5 {[%clk 0:01:36]} 19. Bd2 {[%clk 0:01:27]}  Rad8 {[%clk 0:01:33]} 20. Be1 {[%clk 0:01:21]}  a6 {[%clk 0:01:32]} 21. Bf2 {[%clk 0:01:20]}  Bf6 {[%clk 0:01:24]} 22. Bb6 {[%clk 0:01:20]}  Rxd1 {[%clk 0:01:23]} 23. Rxd1 {[%clk 0:01:21]}  Kg7 {[%clk 0:01:23]} 24. Bd4 {[%clk 0:01:19]}  Rd8 {[%clk 0:01:20]} 25. b4 {[%clk 0:01:18]}  Kf7 {[%clk 0:01:15]} 26. Kf2 {[%clk 0:01:15]}  g4 {[%clk 0:01:10]} 27. Be2 {[%clk 0:01:09]}  g3+ {[%clk 0:01:02]} 28. Kf1 {[%clk 0:01:09]}  Ng6 {[%clk 0:00:50]} 29. Bc4+ {[%clk 0:01:04]}  Ke8 {[%clk 0:00:33]} 30. e5 {[%clk 0:00:46]}  Be7 {[%clk 0:00:34]} 31. Re1 {[%clk 0:00:42]}  Nh4 {[%clk 0:00:24]} 32. Re4 {[%clk 0:00:41]}  f3 {[%clk 0:00:24]} 33. gxf3 {[%clk 0:00:29]}  Nxf3 {[%clk 0:00:25]} 34. Kg2 {[%clk 0:00:26]}  Nd2 {[%clk 0:00:25]} 35. Bd3 {[%clk 0:00:19]}  Nxe4 {[%clk 0:00:25]} 36. Bxe4 {[%clk 0:00:20]}  Bxb4 {[%clk 0:00:25]} 37. Bxh7 {[%clk 0:00:18]}  Be7 {[%clk 0:00:22]} 38. Bg6+ {[%clk 0:00:18]}  Kf8 {[%clk 0:00:22]} 39. Kxg3 {[%clk 0:00:18]}  Rd5 {[%clk 0:00:16]} 40. Be4 {[%clk 0:00:16]}  Rb5 {[%clk 0:00:16]} 41. c4 {[%clk 0:00:15]}  Rb4 {[%clk 0:00:15]} 42. Bd3 {[%clk 0:00:15]}  Rb3 {[%clk 0:00:09]} 43. Bc3 {[%clk 0:00:15]}  Bb4 {[%clk 0:00:07]} 44. Bc2 {[%clk 0:00:16]}  Bxc3 {[%clk 0:00:06]} 45. Bxb3 {[%clk 0:00:16]}  Bxe5+ {[%clk 0:00:07]} 46. Kg4 {[%clk 0:00:11]}  Bxb2 {[%clk 0:00:06]} 47. Kf5 {[%clk 0:00:11]}  Ke7 {[%clk 0:00:06]} 48. h4 {[%clk 0:00:12]}  Kd6 {[%clk 0:00:07]} 49. Ke4 {[%clk 0:00:13]}  Kc5 {[%clk 0:00:07]} 50. Kd3 {[%clk 0:00:13]}  Kb4 {[%clk 0:00:07]} 51. Bd1 {[%clk 0:00:14]}  a5 {[%clk 0:00:07]} 52. Kc2 {[%clk 0:00:14]}  Bf6 {[%clk 0:00:07]} 53. Be2 {[%clk 0:00:14]}  Bxh4 {[%clk 0:00:06]} 54. Kb1 {[%clk 0:00:13]}  Kb3 {[%clk 0:00:04]} 55. Bf1 {[%clk 0:00:11]}  Bf6 {[%clk 0:00:04]} 56. Be2 {[%clk 0:00:12]}  Bd4 {[%clk 0:00:05]} 57. Bd3 {[%clk 0:00:08]}  a4 {[%clk 0:00:02]} 58. Bc2+ {[%clk 0:00:08]}  Kb4 {[%clk 0:00:03]} 59. Ka2 {[%clk 0:00:09]}  a3 {[%clk 0:00:02]} 60. Bd3 {[%clk 0:00:08]}  Bc5 {[%clk 0:00:02]} 61. Be2 {[%clk 0:00:09]}  Kc3 {[%clk 0:00:03]} 62. Bf1 {[%clk 0:00:09]}  Bd6 {[%clk 0:00:03]} 63. Be2 {[%clk 0:00:09]}  Kb4 {[%clk 0:00:03]} 64. Bf1 {[%clk 0:00:10]}  Kc3 {[%clk 0:00:03]} 65. Be2 {[%clk 0:00:10]}  Kd2 {[%clk 0:00:04]} 66. Bf1 {[%clk 0:00:11]}  Be7 {[%clk 0:00:05]} 67. Bh3 {[%clk 0:00:11]}  b5 {[%clk 0:00:02]} 68. cxb5 {[%clk 0:00:11]}  cxb5 {[%clk 0:00:03]} 69. Bd7 {[%clk 0:00:12]}  b4 {[%clk 0:00:03]} 70. Be6 {[%clk 0:00:12]}  Kc3 {[%clk 0:00:04]} 71. Bf7 {[%clk 0:00:11]}  Bf8 {[%clk 0:00:05]} 72. Be6 {[%clk 0:00:11]}  Be7 {[%clk 0:00:06]} 73. Bf7 {[%clk 0:00:12]}  Bf8 {[%clk 0:00:07]} 74. Be6 {[%clk 0:00:13]}  Be7 {[%clk 0:00:08]} 1/2-1/2


[Site "https://www.chess.com"]

[Event "Titled Tuesday Blitz June 13 Late 2023"]
[White "Najer, Evgeniy"]
[Black "Bluebaum, Matthias"]
[WhiteFideId "4118987"]
[BlackFideId "24651516"]
[WhiteElo "2545"]
[BlackElo "2639"]
[Result "1-0"]
[Round "3"]
[TimeControl "180+2"]
[Date "2023.06.13"]
[WhiteClock "0:00:07"]
[BlackClock "0:00:18"]
[Board "9"]

1. d4 {[%clk 0:02:58]}  d5 {[%clk 0:02:59]} 2. c4 {[%clk 0:02:58]}  e6 {[%clk 0:02:59]} 3. Nc3 {[%clk 0:02:58]}  Bb4 {[%clk 0:02:59]} 4. cxd5 {[%clk 0:02:55]}  exd5 {[%clk 0:03:00]} 5. Bf4 {[%clk 0:02:56]}  c5 {[%clk 0:03:00]} 6. e3 {[%clk 0:02:56]}  c4 {[%clk 0:02:59]} 7. Nf3 {[%clk 0:02:52]}  Nc6 {[%clk 0:02:56]} 8. Ne5 {[%clk 0:02:49]}  Nge7 {[%clk 0:02:54]} 9. Be2 {[%clk 0:02:49]}  O-O {[%clk 0:02:53]} 10. O-O {[%clk 0:02:49]}  Bf5 {[%clk 0:02:53]} 11. Rc1 {[%clk 0:02:46]}  a6 {[%clk 0:02:42]} 12. Na4 {[%clk 0:02:39]}  b5 {[%clk 0:02:40]} 13. a3 {[%clk 0:02:32]}  Bd6 {[%clk 0:02:37]} 14. Nxc6 {[%clk 0:02:30]}  Nxc6 {[%clk 0:02:38]} 15. Bxd6 {[%clk 0:02:30]}  Qxd6 {[%clk 0:02:38]} 16. Nc5 {[%clk 0:02:30]}  Rab8 {[%clk 0:02:37]} 17. Nxa6 {[%clk 0:02:25]}  Nxd4 {[%clk 0:02:10]} 18. Qxd4 {[%clk 0:02:08]}  Qxa6 {[%clk 0:02:07]} 19. Qxd5 {[%clk 0:02:08]}  Qf6 {[%clk 0:02:02]} 20. Qd4 {[%clk 0:01:42]}  Qxd4 {[%clk 0:01:55]} 21. exd4 {[%clk 0:01:42]}  Rfe8 {[%clk 0:01:53]} 22. Rfe1 {[%clk 0:01:36]}  Rbd8 {[%clk 0:01:51]} 23. Bf3 {[%clk 0:01:26]}  Rxe1+ {[%clk 0:01:47]} 24. Rxe1 {[%clk 0:01:25]}  g5 {[%clk 0:01:46]} 25. Re5 {[%clk 0:01:24]}  g4 {[%clk 0:01:41]} 26. Bxg4 {[%clk 0:00:59]}  Bxg4 {[%clk 0:01:33]} 27. Rg5+ {[%clk 0:00:59]}  Kf8 {[%clk 0:01:33]} 28. Rxg4 {[%clk 0:01:00]}  b4 {[%clk 0:01:33]} 29. axb4 {[%clk 0:00:55]}  Rb8 {[%clk 0:01:33]} 30. g3 {[%clk 0:00:49]}  Rxb4 {[%clk 0:01:32]} 31. d5 {[%clk 0:00:49]}  Ke7 {[%clk 0:01:32]} 32. Rd4 {[%clk 0:00:41]}  Kd6 {[%clk 0:01:31]} 33. Rd2 {[%clk 0:00:41]}  Rb5 {[%clk 0:01:23]} 34. Kf1 {[%clk 0:00:41]}  Rb3 {[%clk 0:01:22]} 35. Ke2 {[%clk 0:00:41]}  f5 {[%clk 0:01:22]} 36. Kd1 {[%clk 0:00:39]}  h5 {[%clk 0:01:17]} 37. Kc2 {[%clk 0:00:38]}  Rf3 {[%clk 0:01:15]} 38. Kd1 {[%clk 0:00:34]}  Rb3 {[%clk 0:01:13]} 39. Ke2 {[%clk 0:00:33]}  h4 {[%clk 0:01:12]} 40. gxh4 {[%clk 0:00:31]}  Rh3 {[%clk 0:01:10]} 41. Rd4 {[%clk 0:00:30]}  Rxh2 {[%clk 0:01:10]} 42. Rxc4 {[%clk 0:00:24]}  Kxd5 {[%clk 0:01:10]} 43. Rf4 {[%clk 0:00:23]}  Ke5 {[%clk 0:01:10]} 44. Rb4 {[%clk 0:00:18]}  f4 {[%clk 0:01:10]} 45. Kf3 {[%clk 0:00:16]}  Rxh4 {[%clk 0:01:09]} 46. Rb5+ {[%clk 0:00:16]}  Kd4 {[%clk 0:01:09]} 47. Rf5 {[%clk 0:00:15]}  Rh3+ {[%clk 0:01:09]} 48. Kg4 {[%clk 0:00:15]}  Rb3 {[%clk 0:01:08]} 49. Kxf4 {[%clk 0:00:09]}  Rxb2 {[%clk 0:01:07]} 50. f3 {[%clk 0:00:10]}  Rb8 {[%clk 0:01:05]} 51. Rf6 {[%clk 0:00:09]}  Kd5 {[%clk 0:01:06]} 52. Kf5 {[%clk 0:00:09]}  Kd4 {[%clk 0:00:44]} 53. f4 {[%clk 0:00:09]}  Rb5+ {[%clk 0:00:42]} 54. Kg6 {[%clk 0:00:07]}  Ke4 {[%clk 0:00:43]} 55. f5 {[%clk 0:00:07]}  Kf4 {[%clk 0:00:37]} 56. Rf8 {[%clk 0:00:07]}  Rb6+ {[%clk 0:00:36]} 57. f6 {[%clk 0:00:07]}  Ke5 {[%clk 0:00:37]} 58. Kg7 {[%clk 0:00:07]}  Ke6 {[%clk 0:00:27]} 59. Re8+ {[%clk 0:00:05]}  Kf5 {[%clk 0:00:26]} 60. Ra8 {[%clk 0:00:03]}  Rb1 {[%clk 0:00:17]} 61. f7 {[%clk 0:00:03]}  Rg1+ {[%clk 0:00:18]} 62. Kf8 {[%clk 0:00:03]}  Ke6 {[%clk 0:00:19]} 63. Ra6+ {[%clk 0:00:04]}  Kd7 {[%clk 0:00:19]} 64. Ra7+ {[%clk 0:00:04]}  Kd8 {[%clk 0:00:20]} 65. Ra8+ {[%clk 0:00:04]}  Kd7 {[%clk 0:00:19]} 66. Ra2 {[%clk 0:00:04]}  Rg3 {[%clk 0:00:17]} 67. Rd2+ {[%clk 0:00:05]}  Kc7 {[%clk 0:00:17]} 68. Rd1 {[%clk 0:00:04]}  Rg2 {[%clk 0:00:17]} 69. Rd3 {[%clk 0:00:04]}  Rg1 {[%clk 0:00:16]} 70. Rd4 {[%clk 0:00:05]}  Kc6 {[%clk 0:00:12]} 71. Rd2 {[%clk 0:00:04]}  Kc7 {[%clk 0:00:11]} 72. Ke7 {[%clk 0:00:04]}  Re1+ {[%clk 0:00:11]} 73. Kf8 {[%clk 0:00:05]}  Rg1 {[%clk 0:00:11]} 74. Rd5 {[%clk 0:00:04]}  Kc6 {[%clk 0:00:11]} 75. Rf5 {[%clk 0:00:04]}  Kd7 {[%clk 0:00:11]} 76. Rf2 {[%clk 0:00:04]}  Rg3 {[%clk 0:00:10]} 77. Rd2+ {[%clk 0:00:04]}  Kc7 {[%clk 0:00:10]} 78. Rd4 {[%clk 0:00:04]}  Kc6 {[%clk 0:00:10]} 79. Ke7 {[%clk 0:00:04]}  Re3+ {[%clk 0:00:10]} 80. Kf6 {[%clk 0:00:04]}  Rf3+ {[%clk 0:00:11]} 81. Ke6 {[%clk 0:00:04]}  Kc5 {[%clk 0:00:11]} 82. Re4 {[%clk 0:00:04]}  Kc6 {[%clk 0:00:11]} 83. Re5 {[%clk 0:00:04]}  Kc7 {[%clk 0:00:11]} 84. Rc5+ {[%clk 0:00:03]}  Kd8 {[%clk 0:00:11]} 85. Rd5+ {[%clk 0:00:04]}  Kc7 {[%clk 0:00:11]} 86. Rf5 {[%clk 0:00:05]}  Re3+ {[%clk 0:00:11]} 87. Kf6 {[%clk 0:00:05]}  Kd7 {[%clk 0:00:12]} 88. f8=Q {[%clk 0:00:05]}  Re6+ {[%clk 0:00:12]} 89. Kf7 {[%clk 0:00:06]}  Re7+ {[%clk 0:00:13]} 90. Qxe7+ {[%clk 0:00:05]}  Kc6 {[%clk 0:00:14]} 91. Rf6+ {[%clk 0:00:06]}  Kd5 {[%clk 0:00:14]} 92. Qe6+ {[%clk 0:00:06]}  Kd4 {[%clk 0:00:14]} 93. Qg4+ {[%clk 0:00:06]}  Kc3 {[%clk 0:00:15]} 94. Qf4 {[%clk 0:00:05]}  Kb2 {[%clk 0:00:16]} 95. Rg6 {[%clk 0:00:06]}  Ka1 {[%clk 0:00:17]} 96. Rg3 {[%clk 0:00:06]}  Kb1 {[%clk 0:00:17]} 97. Qf2 {[%clk 0:00:07]}  Kc1 {[%clk 0:00:18]} 98. Rg1# {[%clk 0:00:07]} 1-0


[Site "https://www.chess.com"]

[Event "Titled Tuesday Blitz June 13 Late 2023"]
[White "Martinez Alcantara, Jose Eduardo"]
[Black "Lobanov, Sergei"]
[WhiteFideId "3805662"]
[BlackFideId "24183750"]
[WhiteElo "2711"]
[BlackElo "2501"]
[Result "1-0"]
[Round "3"]
[TimeControl "180+2"]
[Date "2023.06.13"]
[WhiteClock "0:00:08"]
[BlackClock "0:00:00"]
[Board "10"]

1. e4 {[%clk 0:03:00]}  e5 {[%clk 0:03:00]} 2. Nf3 {[%clk 0:03:00]}  Nc6 {[%clk 0:03:01]} 3. Bb5 {[%clk 0:03:01]}  a6 {[%clk 0:03:01]} 4. Ba4 {[%clk 0:03:01]}  Bc5 {[%clk 0:03:02]} 5. c3 {[%clk 0:03:01]}  Nge7 {[%clk 0:03:01]} 6. O-O {[%clk 0:02:59]}  Ba7 {[%clk 0:03:01]} 7. d4 {[%clk 0:02:59]}  Ng6 {[%clk 0:03:01]} 8. Be3 {[%clk 0:02:59]}  O-O {[%clk 0:02:59]} 9. Nbd2 {[%clk 0:02:59]}  exd4 {[%clk 0:02:58]} 10. cxd4 {[%clk 0:02:46]}  d5 {[%clk 0:02:58]} 11. Bxc6 {[%clk 0:02:42]}  bxc6 {[%clk 0:02:59]} 12. e5 {[%clk 0:02:43]}  f6 {[%clk 0:02:51]} 13. exf6 {[%clk 0:02:40]}  Qxf6 {[%clk 0:02:50]} 14. Rc1 {[%clk 0:02:41]}  Bd7 {[%clk 0:02:42]} 15. b4 {[%clk 0:02:35]}  Bb6 {[%clk 0:02:40]} 16. a3 {[%clk 0:02:19]}  Rae8 {[%clk 0:02:39]} 17. Re1 {[%clk 0:02:17]}  h6 {[%clk 0:02:38]} 18. Qc2 {[%clk 0:02:12]}  Re7 {[%clk 0:02:21]} 19. a4 {[%clk 0:02:10]}  a5 {[%clk 0:01:10]} 20. Qb2 {[%clk 0:02:01]}  Nf4 {[%clk 0:01:00]} 21. Bxf4 {[%clk 0:01:42]}  Rxe1+ {[%clk 0:01:00]} 22. Rxe1 {[%clk 0:01:43]}  Qxf4 {[%clk 0:01:01]} 23. bxa5 {[%clk 0:01:42]}  Bxa5 {[%clk 0:01:01]} 24. Re3 {[%clk 0:01:30]}  c5 {[%clk 0:00:53]} 25. dxc5 {[%clk 0:01:19]}  Bxa4 {[%clk 0:00:53]} 26. h3 {[%clk 0:00:54]}  Kh8 {[%clk 0:00:36]} 27. Nf1 {[%clk 0:00:45]}  Be8 {[%clk 0:00:24]} 28. Qa2 {[%clk 0:00:35]}  Bb4 {[%clk 0:00:11]} 29. Qxd5 {[%clk 0:00:33]}  Bf7 {[%clk 0:00:12]} 30. Qc6 {[%clk 0:00:22]}  Bc4 {[%clk 0:00:11]} 31. Ng3 {[%clk 0:00:15]}  Qf7 {[%clk 0:00:09]} 32. Kh2 {[%clk 0:00:11]}  Bd5 {[%clk 0:00:09]} 33. Qb5 {[%clk 0:00:11]}  Bc3 {[%clk 0:00:01]} 34. Qd3 {[%clk 0:00:10]}  Bf6 {[%clk 0:00:01]} 35. Ne2 {[%clk 0:00:08]}  c6 {[%clk 0:00:01]} 36. Nf4 {[%clk 0:00:09]}  Qc7 {[%clk 0:00:02]} 37. g3 {[%clk 0:00:09]}  Bg5 {[%clk 0:00:02]} 38. Ng6+ {[%clk 0:00:09]}  Kg8 {[%clk 0:00:02]} 39. Nxf8 {[%clk 0:00:09]}  Bxe3 {[%clk 0:00:03]} 40. Qxe3 {[%clk 0:00:09]}  Kxf8 {[%clk 0:00:03]} 41. Ne5 {[%clk 0:00:09]}  Qa5 {[%clk 0:00:02]} 42. g4 {[%clk 0:00:09]}  Qa1 {[%clk 0:00:02]} 43. f3 {[%clk 0:00:08]}  Qb1 {[%clk 0:00:02]} 44. Kg3 {[%clk 0:00:09]}  Kg8 {[%clk 0:00:02]} 45. h4 {[%clk 0:00:09]}  Qc2 {[%clk 0:00:03]} 46. h5 {[%clk 0:00:09]}  Qd1 {[%clk 0:00:03]} 47. Ng6 {[%clk 0:00:09]}  Kh7 {[%clk 0:00:02]} 48. Ne7 {[%clk 0:00:09]}  Qb1 {[%clk 0:00:01]} 49. Nf5 {[%clk 0:00:08]}  Qc2 {[%clk 0:00:00]} 50. Qd4 {[%clk 0:00:08]} 1-0


[Site "https://www.chess.com"]